bitfinex/quotes_ETHUSD_20241001
["timestamp","ask_amount","ask_price","bid_price","bid_amount"]
[1727809741729,3.98964,2506.5,2506.1,7.81198]
[1727809741971,3.98964,2506.5,2506.1,8.992209]
[1727809742174,0.06299431,2506.4,2506.1,8.992209]
[1727809742475,0.06299431,2506.4,2506.1,5.002029]
[1727809742654,4.05293431,2506.4,2505.9,3.99048]
[1727809743041,4.05293431,2506.4,2505.8,4.77381]
[1727809743042,0.06299431,2506.4,2505.8,0.7831]
[1727809743345,3.9902,2506.2,2505.8,0.7831]
[1727809743766,0.06274763,2506.1,2506.0,3.99042]
[1727809743977,0.06274763,2506.1,2505.8,0.7831]
[1727809744149,3.99002,2506.3,2505.8,4.77376]
[1727809744359,0.06269638,2506.0,2505.5,4.80642]
[1727809744663,3.99055,2506.0,2505.5,4.80642]
[1727809744831,0.06269056,2505.9,2505.5,4.80642]
[1727809745580,4.05330056,2505.9,2505.5,3.99112]
[1727809745947,3.99088,2505.8,2505.3,3.99143]
[1727809746152,0.8124,2505.7,2505.0,3.9919]
[1727809746342,3.99132,2505.5,2505.0,3.99192]
[1727809746533,3.99132,2505.5,2504.9,4.81788]
[1727809746736,4.05367183,2505.4,2504.9,4.81788]
[1727809747376,3.99273,2504.6,2504.1,3.99344]
[1727809747550,0.7593,2504.7,2504.2,3.99319]
[1727809747752,0.06150316,2504.5,2504.4,3.99297]
[1727809748080,0.06150605,2504.5,2504.3,3.99297]
[1727809748240,24.28135,2505.0,2504.3,3.99297]
[1727809748439,24.28135,2505.0,2504.4,0.07961395]
[1727809748650,24.28135,2505.0,2504.1,4.60583759]
[1727809748651,3.9925,2504.7,2504.1,4.60583759]
[1727809748872,7.98509,2504.7,2504.1,4.60581759]
[1727809749182,3.9925,2504.7,2504.1,4.60581759]
[1727809749386,3.99235,2504.8,2504.1,4.60581759]
[1727809749541,3.99235,2504.8,2504.3,3.99312]
[1727809749882,24.28135,2505.0,2504.5,3.99272]
[1727809750048,3.99225,2504.9,2504.4,3.99296]
[1727809751676,20.2893,2505.0,2504.2,3.9932]
[1727809751677,3.99235,2504.8,2504.2,3.9932]
[1727809751883,3.99234,2504.8,2504.3,3.99312]
[1727809752200,3.99234,2504.8,2504.2,3.9932]
[1727809752405,10.412954,2504.8,2504.2,3.9932]
[1727809752566,3.9925,2504.7,2504.2,3.9932]
[1727809752766,6.420504,2504.8,2504.2,3.99315]
[1727809753193,6.420504,2504.8,2504.1,0.0798575]
[1727809753194,3.99252,2504.7,2504.1,0.0798575]
[1727809753352,3.99252,2504.7,2504.2,3.99327]
[1727809754287,3.99234,2504.8,2504.2,0.83909388]
[1727809754451,19.53,2504.9,2504.3,3.99301]
[1727809754752,0.7516,2505.3,2504.6,0.7552]
[1727809754951,0.7516,2505.3,2504.3,4.74828]
[1727809755163,0.7516,2504.8,2504.3,3.99308]
[1727809755485,4.74395,2504.8,2504.3,3.99308]
[1727809755686,3.99273,2504.6,2504.0,7.74878]
[1727809755887,3.99282,2504.5,2504.0,0.7552]
[1727809756055,3.99282,2504.5,2503.4,5.2449739]
[1727809756056,3.99282,2504.5,2503.7,0.7707]
[1727809756254,3.99282,2504.5,2503.8,3.9939]
[1727809756454,0.0608607,2504.4,2503.7,0.7707]
[1727809756757,0.0608607,2504.4,2503.8,3.9938]
[1727809756758,2.01994677,2504.4,2503.8,3.9938]
[1727809756988,2.01994677,2504.4,2503.9,3.99368]
[1727809757300,0.0608607,2504.4,2503.9,3.99368]
[1727809757506,0.0608607,2504.4,2503.8,3.9938]
[1727809757654,0.0608607,2504.4,2503.9,3.99374]
[1727809758151,0.0608607,2504.4,2504.0,3.99355]
[1727809758349,0.0608607,2504.4,2503.9,3.99368]
[1727809758590,0.0608607,2504.4,2503.9,4.393048]
[1727809759109,0.0608607,2504.4,2503.9,3.99368]
[1727809759884,0.0608607,2504.4,2503.8,3.0]
[1727809759885,4.0539307,2504.4,2503.8,3.0]
[1727809760159,3.99346,2504.1,2503.6,3.0]
[1727809760588,0.0587212,2504.0,2503.6,3.0]
[1727809761055,0.0587212,2504.0,2503.6,6.9941]
[1727809761261,0.0587212,2504.0,2503.8,3.99382]
[1727809761484,19.53,2504.2,2503.9,3.99376]
[1727809761680,19.53,2504.2,2503.8,3.99391]
[1727809761681,0.05853853,2503.9,2503.8,3.99391]
[1727809761956,19.53,2504.2,2503.8,3.99391]
[1727809762165,0.05853853,2503.9,2503.8,3.99391]
[1727809762391,19.53,2504.2,2503.8,3.99391]
[1727809762609,19.53,2504.2,2503.4,7.76515]
[1727809762610,0.05853853,2503.9,2503.4,7.76515]
[1727809762825,21.882305,2504.2,2503.4,7.76515]
[1727809762826,3.99352,2504.1,2503.6,3.99423]
[1727809763106,3.99394,2503.8,2503.3,3.99464]
[1727809763462,0.05842575,2503.7,2503.3,3.99464]
[1727809763693,0.05842575,2503.7,2503.1,0.82]
[1727809763897,0.05842575,2503.7,2503.2,3.9948]
[1727809764066,0.05842575,2503.7,2503.2,3.99474]
[1727809764274,0.05842575,2503.7,2503.2,3.99481]
[1727809764591,0.05842575,2503.7,2503.2,8.06947889]
[1727809764902,3.99449,2503.5,2502.8,0.805]
[1727809765059,3.99511,2503.1,2502.6,3.99575]
[1727809765262,3.9956,2502.8,2502.3,3.9963]
[1727809765579,3.9956,2502.8,2501.6,1.6673252]
[1727809765580,0.8192,2502.6,2501.9,4.75796]
[1727809765781,3.996,2502.5,2501.9,3.99685]
[1727809765983,0.0575289,2502.5,2502.1,3.99663]
[1727809766186,0.0575289,2502.5,2502.3,3.99629]
[1727809766420,19.53,2502.7,2502.3,3.99629]
[1727809766566,19.53,2502.7,2502.4,3.99614]
[1727809766761,0.05768812,2502.6,2502.3,3.99624]
[1727809767066,0.05768812,2502.6,2502.4,3.99612]
[1727809767269,0.05768812,2502.6,2502.3,3.99631]
[1727809767475,0.05768812,2502.6,2502.3,4.07622547]
[1727809767962,0.05768812,2502.6,2502.4,3.99612]
[1727809768169,0.05768812,2502.6,2502.5,3.996]
[1727809768397,0.05768812,2502.6,2502.3,3.99631]
[1727809768600,0.05768812,2502.6,2502.3,3.99623]
[1727809768903,0.05768812,2502.6,2502.4,3.99605]
[1727809769565,0.05768812,2502.6,2502.3,0.07991657]
[1727809769993,0.05768812,2502.6,2502.3,3.99631]
[1727809770303,0.05768812,2502.6,2502.2,3.99637]
[1727809770472,6.61184781,2502.6,2502.0,7.99339]
[1727809770680,6.61184781,2502.6,2502.0,3.99668]
[1727809770864,4.74928,2502.5,2502.0,3.99668]
[1727809771263,0.05699579,2502.4,2502.0,3.99668]
[1727809771564,0.05699579,2502.4,2502.1,0.07992949]
[1727809771885,0.05699579,2502.4,2502.2,3.99645]
[1727809772397,0.05699579,2502.4,2502.2,7.99283]
[1727809772598,0.05699579,2502.4,2502.2,3.99638]
[1727809772902,0.05699579,2502.4,2502.3,3.99632]
[1727809773467,0.05699579,2502.4,2502.3,4.87479]
[1727809774532,0.05699579,2502.4,2502.3,4.95470869]
[1727809775000,0.05699579,2502.4,2502.3,4.87479]
[1727809776337,0.05699579,2502.4,2502.3,8.75750523]
[1727809776490,0.05699579,2502.4,2502.3,8.67759]
[1727809776822,0.7875,2503.5,2503.1,3.99488]
[1727809777133,0.05550204,2503.4,2503.1,3.99488]
[1727809777307,0.05550204,2503.4,2502.9,3.99527]
[1727809777739,0.05550204,2503.4,2503.1,3.99492]
[1727809777891,4.05008204,2503.4,2502.9,3.99443]
[1727809778096,3.99514,2503.1,2502.6,3.9958]
[1727809778517,4.0511025,2503.0,2502.5,3.99599]
[1727809778833,4.0511025,2503.0,2502.5,7.98951]
[1727809779127,4.0511025,2503.0,2502.5,3.98959]
[1727809779335,0.0558225,2503.0,2502.6,3.9958]
[1727809779638,23.525,2503.2,2502.7,3.99241]
[1727809779941,23.525,2503.2,2502.6,3.9958]
[1727809779942,2.13031499,2503.1,2502.6,3.99495]
[1727809780099,2.13031499,2503.1,2502.1,3.7697]
[1727809780100,0.8262,2503.0,2502.3,3.99629]
[1727809780484,3.99581,2502.7,2502.1,3.0]
[1727809780738,4.82212,2502.6,2502.0,3.99429]
[1727809781039,4.82212,2502.6,2502.1,3.99575]
[1727809781040,0.88168642,2502.6,2502.1,3.99575]
[1727809781205,1.36942506,2502.6,2502.1,3.99495]
[1727809781528,1.36942506,2502.6,2502.1,3.99175]
[1727809781757,1.36942506,2502.6,2502.0,3.99677]
[1727809781941,3.99602,2502.5,2502.0,3.99677]
[1727809782146,3.99602,2502.5,2502.0,3.99597]
[1727809782449,0.59214179,2502.4,2502.0,3.99597]
[1727809782959,3.99637,2502.3,2501.8,3.99701]
[1727809783166,4.58839179,2502.4,2501.7,3.99717]
[1727809783454,4.58839179,2502.4,2501.8,3.9971]
[1727809783455,0.7511,2502.2,2501.8,3.9971]
[1727809783962,0.05530483,2502.1,2501.8,3.9971]
[1727809784161,0.05530483,2502.1,2501.5,0.07993663]
[1727809784317,0.05530483,2502.1,2502.0,3.9968]
[1727809784953,0.05530483,2502.1,2502.0,4.0767246]
[1727809785171,19.53,2502.5,2502.2,3.99644]
[1727809786031,19.53,2502.5,2502.3,3.99628]
[1727809786227,0.7983,2502.6,2502.3,3.99628]
[1727809786412,0.05472258,2502.5,2502.2,3.99644]
[1727809786617,0.05472258,2502.5,2502.2,7.99283]
[1727809786829,0.05472258,2502.5,2502.2,7.99276]
[1727809787466,0.05472258,2502.5,2502.3,3.99631]
[1727809787667,0.05472258,2502.5,2502.2,3.99637]
[1727809788027,0.05472258,2502.5,2502.3,3.99629]
[1727809788672,0.05472258,2502.5,2502.3,3.99631]
[1727809789077,0.05472258,2502.5,2502.4,3.99616]
[1727809789281,0.05472258,2502.5,2502.4,4.07593132]
[1727809789484,0.7957,2502.9,2502.7,3.99568]
[1727809789773,0.7957,2502.9,2502.5,7.99184]
[1727809789980,0.7957,2502.9,2502.5,7.99182]
[1727809790380,0.7957,2502.9,2502.5,3.9959]
[1727809790569,19.53,2503.1,2502.8,3.99537]
[1727809790746,23.52505,2503.1,2502.5,5.04895876]
[1727809790945,23.52505,2503.1,2502.7,3.99567]
[1727809791142,19.53,2503.1,2502.7,3.99567]
[1727809791368,19.53,2503.1,2502.7,3.9956]
[1727809791776,19.53,2503.1,2502.8,3.99543]
[1727809791978,19.53,2503.1,2502.9,3.99534]
[1727809792193,19.53,2503.1,2502.8,3.99552]
[1727809792546,19.53,2503.1,2502.8,3.99543]
[1727809792745,19.53,2503.1,2502.8,7.99085]
[1727809792947,0.797,2503.5,2502.9,0.07990434]
[1727809793189,0.797,2503.5,2503.1,7.98986]
[1727809793388,0.797,2503.5,2503.0,4.75459]
[1727809793684,4.79149,2503.5,2503.0,3.99519]
[1727809794445,4.79149,2503.5,2503.0,7.9903]
[1727809794847,3.99457,2503.4,2502.8,4.80248544]
[1727809795070,3.99457,2503.4,2502.8,3.99541]
[1727809795071,3.99477,2503.3,2502.8,3.99541]
[1727809795656,4.7522,2503.2,2502.7,3.99562]
[1727809796372,0.7572,2503.2,2502.8,3.99543]
[1727809796686,4.75212,2503.2,2502.7,3.99562]
[1727809797052,0.7572,2503.2,2502.7,3.99561]
[1727809797487,0.7572,2503.2,2502.9,3.99535]
[1727809797688,1.232397,2503.2,2502.8,3.9955]
[1727809797996,0.7572,2503.2,2503.0,3.9952]
[1727809798175,1.629761,2503.5,2503.2,3.99486]
[1727809798388,11.37396,2503.8,2503.0,3.99516]
[1727809798389,0.7512,2503.7,2503.0,3.99516]
[1727809798677,0.7512,2503.7,2503.4,3.99448]
[1727809799447,4.74534,2503.7,2503.2,3.99487]
[1727809799699,4.74534,2503.7,2503.0,3.99515]
[1727809799700,3.99457,2503.4,2503.0,3.99515]
[1727809799850,4.81554,2503.3,2502.8,3.99541]
[1727809800057,3.99496,2503.2,2502.8,3.99541]
[1727809800255,5.696461,2503.3,2502.8,3.9954]
[1727809800497,1.701711,2503.3,2502.8,3.9954]
[1727809800792,1.701711,2503.3,2502.4,0.7895]
[1727809801093,4.81544,2503.3,2502.4,0.7895]
[1727809801251,4.81544,2503.3,2502.7,3.99565]
[1727809801252,3.99497,2503.2,2502.7,3.99565]
[1727809801586,3.9952,2503.0,2502.6,3.99573]
[1727809801774,4.75186,2502.9,2502.5,3.99595]
[1727809801977,4.80348978,2502.9,2502.4,3.99606]
[1727809802156,3.64099876,2502.9,2502.5,3.99589]
[1727809802813,27.16643876,2502.9,2502.2,3.99636]
[1727809802955,7.99145,2502.7,2502.2,3.99648]
[1727809803360,23.17099876,2502.9,2501.9,3.99686]
[1727809803361,0.8298,2502.5,2501.9,3.99686]
[1727809803699,0.8298,2502.5,2501.8,3.997]
[1727809803700,3.99635,2502.3,2501.8,3.997]
[1727809803900,2.8404134,2502.3,2502.2,3.99648]
[1727809804066,20.3598,2502.5,2502.3,3.99632]
[1727809804271,20.3598,2502.5,2502.2,7.99289]
[1727809804496,20.3598,2502.5,2502.2,3.99641]
[1727809804696,20.3598,2502.5,2502.3,3.99632]
[1727809804904,19.53,2502.5,2502.4,3.99616]
[1727809805067,19.53,2502.5,2502.3,3.99629]
[1727809805612,19.53,2502.5,2502.3,3.99619]
[1727809806057,19.53,2502.5,2502.4,3.99616]
[1727809806665,0.7601,2502.9,2502.8,3.99552]
[1727809806883,19.53,2503.1,2502.5,3.99598]
[1727809806884,0.7538,2503.1,2502.5,3.99598]
[1727809807055,3.99523,2503.0,2502.5,3.99598]
[1727809807262,4.74888,2503.1,2502.5,3.99598]
[1727809807263,3.99536,2502.9,2502.5,3.99598]
[1727809807494,0.8093,2502.7,2501.7,2.02630523]
[1727809807699,2.433491,2502.6,2502.2,3.99641]
[1727809807902,2.433491,2502.6,2502.3,3.9963]
[1727809808133,2.433491,2502.6,2502.3,3.99629]
[1727809808404,21.963491,2502.6,2501.7,2.02630523]
[1727809808622,21.963491,2502.6,2501.7,3.99715]
[1727809808623,3.99629,2502.4,2501.7,3.99715]
[1727809808767,3.99629,2502.4,2501.9,3.99694]
[1727809808969,0.8276,2502.2,2501.4,1.23980523]
[1727809809193,0.8276,2502.2,2501.7,3.99718]
[1727809809397,0.8276,2502.2,2501.8,3.9971]
[1727809809582,2.435396,2502.1,2501.7,3.99718]
[1727809809778,2.435396,2502.1,2501.6,3.9974]
[1727809809983,6.432036,2502.1,2501.6,3.9974]
[1727809810624,6.432036,2502.1,2501.1,14.79267481]
[1727809810625,19.53,2502.0,2501.1,0.8192]
[1727809810917,3.99732,2501.7,2501.2,3.99795]
[1727809811081,3.99745,2501.6,2501.0,5.23814523]
[1727809811412,3.99745,2501.6,2501.0,3.99829]
[1727809811413,0.399745,2501.5,2501.0,3.99829]
[1727809811708,0.7653,2501.4,2501.0,3.99829]
[1727809812690,19.53,2501.3,2500.5,0.7556]
[1727809812899,23.52802,2501.3,2500.7,3.99885]
[1727809813195,2.829121,2501.2,2500.7,3.99874]
[1727809813396,2.829121,2501.2,2500.7,7.99752]
[1727809813975,22.359121,2501.2,2500.5,3.99915]
[1727809814307,22.359121,2501.2,2501.0,3.9984]
[1727809814308,0.8205,2501.1,2501.0,3.9984]
[1727809815009,19.53,2501.2,2501.0,3.9984]
[1727809815221,19.53,2501.2,2501.1,3.99824]
[1727809815957,0.7557,2501.6,2501.3,3.99788]
[1727809816115,0.7557,2501.6,2501.2,3.99804]
[1727809816443,0.7557,2501.6,2501.3,3.99789]
[1727809816607,0.05065531,2501.5,2501.1,3.99808]
[1727809816807,0.05065531,2501.5,2501.2,3.99806]
[1727809817246,0.05065531,2501.5,2501.3,3.99788]
[1727809817618,0.05065531,2501.5,2501.2,3.99806]
[1727809817821,0.05065531,2501.5,2500.8,3.99859]
[1727809817822,0.53103484,2501.5,2500.8,3.99859]
[1727809818051,0.53103484,2501.5,2500.6,3.7805]
[1727809818052,3.99841,2501.0,2500.5,3.99915]
[1727809818257,0.8098,2501.2,2500.5,5.73551958]
[1727809818414,0.8098,2501.2,2500.7,3.99885]
[1727809818751,0.04986006,2501.1,2500.8,3.99866]
[1727809819051,0.04986006,2501.1,2500.9,3.99854]
[1727809819052,0.53561807,2501.1,2500.9,3.99854]
[1727809819377,0.04986006,2501.1,2501.0,3.9984]
[1727809819650,0.04986006,2501.1,2500.8,3.99862]
[1727809819851,0.04986006,2501.1,2501.0,3.9984]
[1727809820012,24.3396,2501.4,2500.9,3.99853]
[1727809820212,27.173328,2501.4,2500.9,3.99853]
[1727809820418,0.05031203,2501.3,2501.0,3.99831]
[1727809820659,0.05031203,2501.3,2500.9,3.99849]
[1727809820837,0.05031203,2501.3,2501.0,3.99839]
[1727809821045,0.05031203,2501.3,2501.1,3.99814]
[1727809821554,0.05031203,2501.3,2501.0,3.99837]
[1727809821855,0.05031203,2501.3,2500.9,3.99845]
[1727809821856,0.05031203,2501.3,2501.1,3.99822]
[1727809822016,0.05031203,2501.3,2501.1,3.99816]
[1727809822663,0.05031203,2501.3,2500.9,7.99692]
[1727809822830,4.81770403,2501.3,2500.7,3.99872]
[1727809823025,4.81770403,2501.3,2500.8,3.99871]
[1727809823026,3.99808,2501.2,2500.8,3.99871]
[1727809823245,4.81770403,2501.3,2500.6,3.99895]
[1727809823246,0.7925,2501.0,2500.6,3.99895]
[1727809823447,0.04970189,2500.9,2500.6,3.99895]
[1727809823960,0.04970189,2500.9,2500.6,3.99902]
[1727809824124,0.04970189,2500.9,2500.8,3.99872]
[1727809824540,0.7538,2501.3,2501.1,3.99814]
[1727809826856,0.7538,2501.3,2500.9,3.99841]
[1727809827041,0.7538,2501.3,2501.1,3.99822]
[1727809827247,4.75185,2501.3,2500.4,4.79571]
[1727809827443,3.99841,2501.0,2500.4,0.7964]
[1727809827758,3.99808,2501.2,2500.6,3.99895]
[1727809827930,3.99833,2501.1,2500.6,3.99895]
[1727809828254,3.99833,2501.1,2500.4,4.79564]
[1727809828255,3.99828,2501.1,2500.5,3.99917]
[1727809828569,3.99828,2501.1,2500.6,3.99895]
[1727809828855,0.399828,2501.0,2500.7,3.99886]
[1727809829061,24.28185,2501.3,2501.0,3.99836]
[1727809829062,20.2838,2501.3,2501.0,3.99836]
[1727809829366,0.7538,2501.3,2501.0,3.99836]
[1727809829820,0.7538,2501.3,2500.9,3.99855]
[1727809830016,0.7538,2501.3,2500.7,0.8257]
[1727809830017,2.78218,2501.3,2501.1,3.99815]
[1727809830266,0.7538,2501.3,2501.1,3.99815]
[1727809830959,19.53,2501.5,2501.2,3.998]
[1727809831657,0.04993131,2501.4,2501.3,3.99791]
[1727809831868,0.04993131,2501.4,2501.1,3.99816]
[1727809831869,0.13140169,2501.4,2501.1,3.99816]
[1727809832161,0.13140169,2501.4,2501.2,3.99799]
[1727809833424,0.13140169,2501.4,2501.3,4.75742]
[1727809833620,0.13140169,2501.4,2501.3,4.83737075]
[1727809833824,20.3433,2501.9,2501.5,7.99508]
[1727809834024,0.8133,2501.9,2501.5,7.99508]
[1727809834266,0.8133,2501.9,2501.6,3.99741]
[1727809834859,0.8133,2501.9,2501.4,3.99772]
[1727809835060,0.8133,2501.9,2501.6,3.99743]
[1727809835273,7.38,2502.4,2502.2,3.99648]
[1727809835274,19.53,2502.4,2502.2,3.99648]
[1727809835559,0.7888,2502.5,2502.0,3.99665]
[1727809835872,4.78489,2502.5,2502.0,3.99665]
[1727809836370,0.7888,2502.5,2502.1,3.99661]
[1727809836527,0.7888,2502.5,2502.0,3.99667]
[1727809836726,0.7888,2502.5,2502.3,3.99628]
[1727809837267,0.7888,2502.5,2502.2,3.9964]
[1727809837558,5.26328,2502.5,2502.0,3.99667]
[1727809837760,5.26328,2502.5,2501.8,3.99699]
[1727809837761,3.9964,2502.3,2501.8,3.99699]
[1727809837938,3.99684,2502.0,2501.6,3.9974]
[1727809838343,7.99376,2502.0,2501.4,3.9976]
[1727809838526,0.7888,2501.7,2501.1,3.99812]
[1727809838725,0.7888,2501.7,2501.3,3.9979]
[1727809838981,0.7888,2501.7,2501.4,3.99767]
[1727809839128,2.82068,2501.7,2501.4,3.99767]
[1727809839563,20.2856,2501.9,2501.6,3.99742]
[1727809839775,20.2856,2501.9,2501.3,0.07944253]
[1727809839776,0.7556,2502.2,2501.9,3.99685]
[1727809839927,0.7556,2502.2,2501.5,3.99752]
[1727809840128,0.7556,2502.2,2502.0,3.99668]
[1727809840547,0.7556,2502.2,2502.0,3.99667]
[1727809840747,23.52593,2502.6,2502.0,3.99667]
[1727809840748,0.8226,2502.5,2502.0,3.99667]
[1727809840958,3.257453,2502.5,2502.0,3.99667]
[1727809841164,3.257453,2502.5,2501.9,3.99681]
[1727809841328,3.99624,2502.4,2501.9,3.99681]
[1727809841725,3.99659,2502.2,2501.7,3.99713]
[1727809841974,0.7624,2502.0,2501.7,7.9943]
[1727809842176,0.7624,2502.0,2501.7,3.99713]
[1727809842530,0.7624,2502.0,2501.7,7.99433]
[1727809842954,0.7624,2502.0,2501.7,3.99713]
[1727809843156,0.7624,2502.0,2501.8,3.99709]
[1727809843467,0.7624,2502.0,2501.6,3.99728]
[1727809843852,5.235177,2502.0,2501.6,3.9974]
[1727809844055,1.238297,2502.0,2501.7,3.99727]
[1727809844266,1.238297,2502.0,2501.6,3.99742]
[1727809844431,1.238297,2502.0,2501.5,3.99747]
[1727809844753,1.238297,2502.0,2501.7,3.99726]
[1727809844960,0.7624,2502.0,2501.7,3.99726]
[1727809845266,0.7624,2502.0,2501.7,3.99719]
[1727809845572,0.7624,2502.0,2501.6,3.99743]
[1727809845779,4.75929,2502.0,2501.6,3.99741]
[1727809846292,4.75929,2502.0,2501.5,3.99753]
[1727809846293,3.99696,2501.9,2501.3,3.99779]
[1727809846579,0.875625,2501.8,2501.3,3.99789]
[1727809846932,0.11922214,2501.7,2501.3,3.99789]
[1727809847132,0.11922214,2501.7,2501.4,3.99774]
[1727809847352,4.75928,2502.0,2501.5,3.99758]
[1727809847557,4.75928,2502.0,2501.0,5.73551958]
[1727809847558,0.11520845,2501.6,2501.0,5.73551958]
[1727809847741,3.99704,2501.9,2501.4,3.99775]
[1727809848043,0.11459047,2501.5,2501.4,3.99775]
[1727809848243,3.99698,2501.9,2501.5,3.99746]
[1727809848449,5.235208,2502.0,2501.4,3.99775]
[1727809848637,0.5235208,2501.9,2501.5,3.99748]
[1727809849137,0.7624,2502.0,2501.6,3.99732]
[1727809849371,0.7624,2502.0,2501.7,3.99718]
[1727809849587,0.7624,2502.0,2501.6,3.99732]
[1727809849588,19.53,2502.1,2501.6,3.99731]
[1727809849789,19.53,2502.1,2501.7,3.99723]
[1727809850090,19.53,2502.1,2501.5,0.768]
[1727809850091,19.53,2502.1,2502.0,3.9968]
[1727809850246,19.53,2502.2,2502.1,3.99664]
[1727809853489,19.53,2502.2,2501.9,3.99695]
[1727809853692,19.53,2502.2,2502.0,3.99676]
[1727809854078,21.483,2502.2,2501.8,3.99699]
[1727809854413,19.53,2502.1,2501.8,3.99699]
[1727809855204,19.53,2502.1,2501.7,3.99726]
[1727809855389,19.53,2502.1,2501.7,3.9972]
[1727809855589,19.53,2502.1,2501.8,3.99703]
[1727809855787,22.156939,2502.1,2501.8,3.99703]
[1727809856593,22.156939,2502.1,2501.9,3.99694]
[1727809856933,19.53,2502.1,2501.9,3.99694]
[1727809857716,19.53,2502.1,2502.0,3.9968]
[1727809860305,0.7933,2502.4,2501.5,0.8202]
[1727809860306,19.53,2502.3,2501.5,0.8202]
[1727809860621,3.99664,2502.1,2501.7,3.99716]
[1727809860827,3.99712,2501.8,2501.4,3.99769]
[1727809861132,5.175654,2502.0,2501.5,3.99752]
[1727809861505,5.175654,2502.0,2501.4,3.99769]
[1727809861506,3.99712,2501.8,2501.4,3.99767]
[1727809861829,3.99712,2501.8,2501.2,4.81814]
[1727809861830,0.10708825,2501.7,2501.3,3.99789]
[1727809862197,5.175594,2502.0,2501.4,3.99764]
[1727809862390,5.175594,2502.0,2501.2,3.99796]
[1727809862391,4.1044375,2501.6,2501.2,3.99796]
[1727809862597,0.8065,2501.5,2501.2,3.99796]
[1727809862896,4.91104849,2501.5,2501.0,3.99829]
[1727809863127,3.99821,2501.2,2500.6,1.23980523]
[1727809863291,4.10450849,2501.5,2500.4,5.23903523]
[1727809863292,1.206321,2501.1,2500.4,5.23903523]
[1727809863493,1.206321,2501.1,2500.3,1.23980523]
[1727809863494,3.99865,2500.9,2500.3,1.23980523]
[1727809863739,4.10549418,2500.8,2500.4,1.23980523]
[1727809863895,0.10676418,2500.8,2500.4,1.23980523]
[1727809864233,0.8307,2500.5,2500.4,1.23980523]
[1727809864435,0.8307,2500.5,2500.3,1.23980523]
[1727809864633,0.93716343,2500.5,2500.4,1.23980523]
[1727809865141,4.93636343,2500.5,2500.4,1.23980523]
[1727809865322,4.93636343,2500.5,2500.3,1.65307365]
[1727809865323,5.82990477,2500.5,2500.3,1.23980523]
[1727809865532,4.54936,2500.4,2500.3,1.23980523]
[1727809865834,5.38022,2500.3,2500.2,1.23980523]
[1727809866241,5.48610536,2500.3,2500.2,1.23980523]
[1727809866535,6.52400703,2500.3,2500.2,1.23980523]
[1727809867244,0.93658536,2500.3,2500.2,1.23980523]
[1727809867533,0.93658536,2500.3,2500.0,1.65307365]
[1727809867534,0.93658536,2500.3,2500.0,1.23980523]
[1727809867733,3.99984,2500.1,2499.9,1.23980523]
[1727809867944,4.54984,2500.1,2500.0,1.23980523]
[1727809868237,0.10556132,2500.0,2499.9,1.23980523]
[1727809868412,5.49845054,2500.1,2499.8,1.23980523]
[1727809868610,0.10532532,2500.0,2499.9,1.23980523]
[1727809869832,0.10532532,2500.0,2499.9,1.65307365]
[1727809870200,0.10532532,2500.0,2499.8,1.65307365]
[1727809870201,6.38417091,2500.0,2499.8,1.65307365]
[1727809870406,8.31866,2499.9,2499.8,1.25519796]
[1727809870713,8.31866,2499.9,2499.6,1.65307365]
[1727809870714,0.55,2499.7,2499.6,1.65307365]
[1727809871034,0.10555208,2499.7,2499.6,1.65307365]
[1727809871398,8.76934,2499.8,2499.6,1.67334816]
[1727809871600,5.31891,2499.8,2499.5,1.25479995]
[1727809871796,4.00064,2499.6,2499.5,1.25479995]
[1727809872049,4.0006,2499.7,2499.5,1.25479995]
[1727809872235,0.55,2499.5,2499.4,1.25479995]
[1727809872426,24.0808,2499.5,2499.4,1.25479995]
[1727809873073,24.0808,2499.5,2499.2,1.67334816]
[1727809873074,5.32316,2499.4,2499.3,1.25479995]
[1727809873214,0.7722,2499.1,2499.0,1.25479995]
[1727809873423,7.5516,2499.0,2498.8,1.25479995]
[1727809873732,9.73695958,2499.1,2498.5,1.25479995]
[1727809873733,3.55,2498.6,2498.5,1.25479995]
[1727809873944,8.33374,2498.6,2498.5,1.25479995]
[1727809874147,7.0024,2498.5,2498.4,0.1242075]
[1727809874320,27.8639,2498.5,2498.4,0.1242075]
[1727809875556,20.8615,2498.5,2498.4,0.1242075]
[1727809875853,24.8639,2498.5,2498.4,0.1242075]
[1727809876367,20.8615,2498.5,2498.4,0.1242075]
[1727809876535,20.96543174,2498.5,2498.4,0.1242075]
[1727809876919,20.41543174,2498.5,2498.4,0.1242075]
[1727809877517,0.10393174,2498.5,2498.4,0.1242075]
[1727809877935,0.10395631,2498.5,2498.4,0.1242075]
[1727809878263,19.53,2498.7,2498.4,0.1242075]
[1727809878630,0.10401386,2498.6,2498.4,0.1242075]
[1727809879600,5.3085,2498.5,2498.4,0.1242075]
[1727809879894,27.8385,2498.5,2498.4,0.1242075]
[1727809880043,27.9428917,2498.5,2498.4,0.1242075]
[1727809880587,0.8285,2497.8,2497.3,4.00424]
[1727809880746,19.4057925,2497.7,2497.5,4.004]
[1727809880950,19.50962068,2497.7,2497.3,4.00421]
[1727809881285,19.50962068,2497.7,2497.4,4.00416]
[1727809881460,20.25187938,2497.7,2497.3,4.00421]
[1727809881662,20.25187938,2497.7,2497.3,8.00845]
[1727809881974,20.25187938,2497.7,2497.1,4.00449]
[1727809882151,4.00385,2497.6,2497.1,4.00449]
[1727809882352,1.03568733,2497.6,2497.2,4.00432]
[1727809882572,4.0041,2497.5,2497.0,5.25956995]
[1727809882759,4.0041,2497.5,2497.2,4.00438]
[1727809882760,0.65368802,2497.5,2497.2,4.00438]
[1727809882961,0.65368802,2497.5,2497.0,4.00469]
[1727809882962,19.4057925,2497.4,2497.0,4.00469]